Cogmind - Beta 9.3 @@@ ROGUE MODE // 2019.12.21 @ 21:20:50 // Winter2019/RPGLIKE Player: Exeight Result: Destroyed by D-53 Grenadier with Mini Grenade Launcher Performance ------------- Evolutions (0) 0 Regions Visited (2) 400 Robots Destroyed (31) 155 Value Destroyed (770) 770 Prototype IDs (0) 0 Alien Tech Used (0) 0 Bonus (0) 0 TOTAL SCORE: 1325 Bonus ------- None Cogmind --------- Core Integrity 0/600 Matter 190/300 Energy 98/100 System Corruption 0% Temperature Cool (4) Movement Flying (37) Location -10/Mines Parts ------- > --- POWER (1) -------- (None) > --- PROPULSION (2) --- Flight Unit Flight Unit > --- UTILITY (2) ------ Signal Interpreter Targeting Computer > --- WEAPON (1) ------- Grenade Launcher > --- INVENTORY (1) ---- Assault Rifle Peak State ------------ > --- POWER ------------ Light Ion Engine > --- PROPULSION ------- Hover Unit Hover Unit > --- UTILITY ---------- Signal Interpreter Targeting Computer > --- WEAPON ----------- Assault Rifle > --- INVENTORY -------- Grenade Launcher [Rating: 6] Favorites ----------- Power Light Ion Engine Engine Light Ion Engine Propulsion Aluminum Leg Leg Aluminum Leg Hover Unit Hover Unit Flight Unit Flight Unit Utility Signal Interpreter Processor Signal Interpreter Weapon Assault Rifle Ballistic Gun Assault Rifle Launcher Grenade Launcher Build | -11 -10 -10 ------- Run | Scr Mat Min Slots Evolved 2 | . 2 . Power . | . . . Propulsion 1 | . 1 . Utility 1 | . 1 . Weapon . | . . . Parts Attached 10 | 2 7 1 Power 1 | 1 . . Engine 1 | 1 . . Core . | . . . Reactor . | . . . Propulsion 5 | 1 4 . Treads . | . . . Leg 1 | 1 . . Wheel . | . . . Hover 2 | . 2 . Flight 2 | . 2 . Utility 2 | . 2 . Device . | . . . Storage . | . . . Processor 2 | . 2 . Hackware . | . . . Protection . | . . . Artifact . | . . . Weapon 2 | . 1 1 Energy Gun . | . . . Energy Cannon . | . . . Ballistic Gun 1 | . 1 . Ballistic Cannon . | . . . Launcher 1 | . . 1 Special Weapon . | . . . Impact Weapon . | . . . Slashing Weapon . | . . . Piercing Weapon . | . . . Special Melee Weapon . | . . . Unidentified Prototypes . | . . . Parts Lost 1 | . . 1 Power 1 | . . 1 Propulsion . | . . . Utility . | . . . Weapon . | . . . Highest Loss Streak 1 | . . 1 Average Slot Usage (%) 78 | . 76 100 Engine 19 | . 19 16 Leg 16 | . 17 . Hover 2 | . 2 . Flight 3 | . . 33 Processor 17 | . 16 33 Ballistic Gun 18 | . 19 6 Naked Turns . | . . . Heaviest Build 6 | 3 5 6 Greatest Support 12 | 10 12 8 Greatest Overweight (x) 1 | . 1 . Average Overweight (x) . | . . . Largest Inventory Capacity 1 | 1 1 1 Average Capacity 1 | 1 1 1 Most Carried 1 | 1 1 1 Average Carried . | . . 1 Final Capacity 1 | 1 1 1 Final Carried 1 | 1 1 1 Class Distribution -------------------- 100% | Mutant Dominant Class ---------------- Mutant | -10/Materials Mutant | -10/Mines Resources | -11 -10 -10 ----------- Run | Scr Mat Min Matter Collected 754 | 195 559 . Remotely . | . . . Salvage Created 745 | . 745 . Parts 65 | . 65 . Haulers Intercepted 1 | . 1 . Recyclers Shooed 1 | . 1 . Parts Field Recycled . | . . . Retrieved Matter . | . . . Parts Self-Destructed . | . . . Prevented . | . . . Kills | -11 -10 -10 ------- Run | Scr Mat Min Combat Hostiles Destroyed 20 | . 20 . Guns 20 | . 20 . Classes Destroyed 8 | . 8 . Worker 1 | . 1 . Builder 1 | . 1 . Hauler 1 | . 1 . Recycler 1 | . 1 . Operator 4 | . 4 . Watcher 3 | . 3 . Swarmer 3 | . 3 . Grunt 17 | . 17 . Best Kill Streak 4 | . 4 . Combat Bots Only 4 | . 4 . Max Kills in Single Turn 1 | . 1 . Gunslinging . | . . . Exploded . | . . . Melee . | . . . Uniques/NPCs Destroyed . | . . . Combat | -11 -10 -10 -------- Run | Scr Mat Min Damage Taken 1485 | . 988 497 Core 1260 | . 820 440 Absorbed by Shields . | . . . Redirected to Core 716 | . 514 202 Core Remaining (%) 100 | 100 . . Volleys Fired 178 | . 173 5 Largest 1 | . 1 1 Hottest 30 | . 20 30 Shots Fired 178 | . 173 5 Gun 173 | . 173 . Cannon . | . . . Launcher 5 | . . 5 Special . | . . . Kinetic 173 | . 173 . Thermal . | . . . Explosive 5 | . . 5 Electromagnetic . | . . . Robot Hit Streak 16 | . 16 4 Robot Miss Streak 5 | . 5 1 Penetration Max . | . . . Secondary Targets . | . . . Shots Hit Robots 120 | . 118 2 Core Hits 52 | . 49 3 Critical Hits 1 | . 1 . Critical Kills . | . . . Critical Parts Destroyed 1 | . 1 . Melee Attacks . | . . . Impact . | . . . Slashing . | . . . Piercing . | . . . Sneak Attacks . | . . . Combat Hostiles . | . . . Follow-up Attacks . | . . . Damage Inflicted 1883 | . 1795 88 Guns 1795 | . 1795 . Cannons . | . . . Explosions 88 | . . 88 Melee . | . . . Ramming . | . . . Kinetic 1795 | . 1795 . Thermal . | . . . Explosive 88 | . . 88 Electromagnetic . | . . . Impact . | . . . Slashing . | . . . Piercing . | . . . Highest Corruption . | . . . Average Corruption . | . . . Corruption Purged . | . . . Overload Shots . | . . . Overflow Damage . | . . . Projectiles . | . . . Explosions . | . . . Melee . | . . . Knockbacks . | . . . Impact . | . . . Kinetic . | . . . Secondary . | . . . Self-Inflicted Damage 30 | . . 30 Shots 1 | . . 1 Rammed . | . . . Targets Rammed . | . . . Kicked . | . . . Crushed . | . . . Highest Temperature 17 | . 5 17 Average Temperature 9 | . 5 9 Received Heat Transfer 527 | . 489 38 Siege Activations . | . . . Robots Corrupted . | . . . Combat Hostiles . | . . . Parts Fried . | . . . Impact Corruptions . | . . . Robots Melted . | . . . Combat Hostiles . | . . . Parts Melted . | . . . Heat Transferred . | . . . Parts Sabotaged . | . . . Parts Stolen . | . . . Parts Stripped . | . . . Power Chain Reactions . | . . . Missiles Intercepted . | . . . Alert | -11 -10 -10 ------- Run | Scr Mat Min Peak Influence 242 | . 242 127 Average Influence 138 | . 145 83 Maximum Alert Level 1 | . 1 . Low Security (%) 79 | 100 78 100 Level 1 20 | . 21 . Level 2 . | . . . Level 3 . | . . . Level 4 . | . . . Level 5 . | . . . High Security . | . . . Max Security . | . . . Squads Dispatched 6 | . 6 . Investigation 1 | . 1 . Extermination . | . . . Reinforcement 5 | . 5 . Assault . | . . . Garrison . | . . . Intercept . | . . . Construction Impeded . | . . . Haulers Reinforced . | . . . Stealth | -11 -10 -10 --------- Run | Scr Mat Min Distress Signals 2 | . 2 . Communications Jammed . | . . . Distress Signals . | . . . Times Spotted 59 | . 47 12 Peak Tracking Total 8 | . 6 8 Tactical Retreats 5 | . 3 2 Traps | -11 -10 -10 ------- Run | Scr Mat Min Traps Triggered 2 | . 2 . Indirectly . | . . . Trap Hack Attempts . | . . . Triggered . | . . . Disarmed . | . . . Reprogrammed . | . . . Reused . | . . . Traps Extracted . | . . . Installed . | . . . Triggered . | . . . Machines | -11 -10 -10 ---------- Run | Scr Mat Min Machines Disabled 1 | . 1 . Max in Single Turn 1 | . 1 . Machines Sabotaged . | . . . Garrisons Compromised . | . . . Overloaded Fab Kills . | . . . Fab Network Shutdowns . | . . . Hacking | -11 -10 -10 --------- Run | Scr Mat Min Machines Accessed 3 | . 3 . Terminals 3 | . 3 . Fabricators . | . . . Repair Stations . | . . . Recycling Units . | . . . Scanalyzers . | . . . Garrison Access . | . . . Total Hacks 6 | . 6 . Successful 2 | . 2 . Failed 4 | . 4 . Catastrophic 1 | . 1 . Database Lockouts . | . . . Manual 6 | . 6 . Terminals 6 | . 6 . Fabricators . | . . . Repair Stations . | . . . Recycling Units . | . . . Scanalyzers . | . . . Garrison Access . | . . . Terminal Hacks 1 | . 1 . Zone Layout 1 | . 1 . Fabricator Hacks . | . . . Repair Station Hacks . | . . . Recycling Unit Hacks . | . . . Scanalyzer . | . . . Garrison Access Hacks . | . . . Unauthorized Hacks 2 | . 2 . Terminals 1 | . 1 . Track 1 | . 1 . Fabricators . | . . . Repair Stations . | . . . Recycling Units . | . . . Scanalyzers . | . . . Garrison Access . | . . . Data Cores Recovered . | . . . Used . | . . . Hacking Detections 3 | . 3 . Full Trace Events . | . . . Feedback Events . | . . . Feedback Blocked . | . . . Robot Schematics Acquired . | . . . Robots Built . | . . . Matter . | . . . Time . | . . . Total Robot Build Rating . | . . . Part Schematics Acquired . | . . . Parts Built . | . . . Matter . | . . . Time . | . . . Total Part Build Rating . | . . . Parts Repaired . | . . . Time . | . . . Parts Recycled . | . . . Recycled Matter . | . . . Retrieved Matter . | . . . Retrieved Components . | . . . Parts Scanalyzed . | . . . Part Schematics Acquired . | . . . Parts Damaged . | . . . Bothacking | -11 -10 -10 ------------ Run | Scr Mat Min Used RIF Installer . | . . . Robots Hacked . | . . . Non-combat . | . . . Combat . | . . . Robot Hacks Applied . | . . . Relay Couplers Released . | . . . Robots Rewired . | . . . Allies Hacked . | . . . Hacks Repelled . | . . . Allies | -11 -10 -10 -------- Run | Scr Mat Min Total Allies . | . . . Largest Group . | . . . Highest-Rated Group . | . . . Highest-Rated Ally . | . . . Total Orders . | . . . Ally Attacks . | . . . Total Damage . | . . . Kills . | . . . Allies Corrupted . | . . . Allies Melted . | . . . Intel | -11 -10 -10 ------- Run | Scr Mat Min Robot Analysis Total . | . . . Derelict Logs Recovered . | . . . Drone Launches . | . . . Drone Recoveries . | . . . Exploration | -11 -10 -10 ------------- Run | Scr Mat Min Turns Passed 2028 | 40 1851 137 Spaces Moved 1426 | 39 1067 320 Core 16 | 14 2 . Treads . | . . . Legs 794 | 25 769 . Wheels . | . . . Hover 193 | . 193 . Flight 423 | . 103 320 Fastest Speed 37 | 50 37 37 Average Speed 86 | 94 100 37 Slowest Speed 120 | 120 120 37 Overloaded Moves . | . . . Propulsion Burnouts . | . . . Robots Hopped 1 | . 1 . Cave-ins Triggered . | . . . Exploration Rate (%) 50 | 3 95 54 Regions Visited 2 Branch Regions 1 Pre-discovered Areas . | . . . Known Exits Taken 1 | . 1 . Unknown Exits Taken 1 | 1 . . Scrap Searched . | . . . Spaces Dug . | . . . Terrain Destroyed 46 | . . 46 Melee . | . . . Projectile . | . . . AOE 46 | . . 46 Actions | -11 -10 -10 --------- Run | Scr Mat Min Total 2044 | 41 1670 333 Wait 391 | . 384 7 Move 1422 | 38 1064 320 Hop 1 | . 1 . Pick Up 3 | 1 2 . Fast Attach 7 | 2 5 . Attach 2 | . 2 . Detach . | . . . Swap 1 | . . 1 Drop 3 | . 3 . Fire 178 | . 173 5 Melee . | . . . Ram . | . . . Kick . | . . . Crush . | . . . Escape Stasis . | . . . Rewire . | . . . Trap . | . . . Miscellaneous 36 | . 36 . Route ------- -11/Scrapyard -10/Materials (discovered 4 exits: *Mat x3 / *Min) -10/Mines History --------- Turn | Location | Event 2 | -11/Scrapyard | Discovered new exit (range 16) 41 | -11/Scrapyard | Entered Materials 309 | -10/Materials | Build established: Mutant 548 | -10/Materials | Discovered new exit (range 14) 602 | -10/Materials | Identified exit to Materials 686 | -10/Materials | Reached level 2 700 | -10/Materials | Upgraded with Propulsion slot (x1) 700 | -10/Materials | Upgraded with Utility slot (x1) 1402 | -10/Materials | Discovered exit to Materials (range 15) 1593 | -10/Materials | Discovered new exit (range 15) 1772 | -10/Materials | Discovered exit to Materials (range 14) 1891 | -10/Materials | Identified exit to Mines 1892 | -10/Materials | Entered Mines 1894 | -10/Mines | Reached level 3 1909 | -10/Mines | Assembled infested the area 2009 | -10/Mines | Core integrity fell below 50% 2027 | -10/Mines | Core integrity fell below 20% 2029 | -10/Mines | Destroyed by D-53 Grenadier with Mini Grenade Launcher Last Messages --------------- LOCATION=MINES GOAL=ESCAPE Something is scanning the area. K-01 Serf collects debris. Reached level 3. Upgraded: Ranged Accuracy (+15) ALERT: Infestation in the mines, dispatching Demolisher response squad. K-01 Serf collects debris. C-30 ARC bursts open, deploying its payload. D-53 Grenadier unfolds itself. K-01 Serf collects debris. The unstable cave ceiling collapses. Y-45 Defender destroyed. K-01 Serf collects debris. K-01 Serf destroyed. U-05 Engineer lays Concrete. T-07 Excavator destroyed. Lgt. Ion Engine destroyed. R-06 Scavenger destroyed. U-05 Engineer lays Concrete. Map ----- +----------------------------------------------------+ | ????????????????#######?????????????????????????? | | ????????????????# #?????????????????????????? | | ????????????????# """ #?????????????????????????? | | ????????????????# """ #?????????????????????????? | | ????????????????# """ #?????????????????????????? | | ????????????????# """ ######??????????????###?##? | | ????????????????# #????#?????????# # #? | | ????????????????# #### ###### ##### ## | | ????????????????# #??# # | | ????????????????############## # #### #? | | ?????????????????????## #?### #?????????## #? | | ?????????????????????# ## #??????????## ##? | | ?????????????????????# #???????????# #?? | | ?????????????????????## #??????###### ##? | | ??????????????????????## ##?????# #? | | ???????????????????????## #??#### #? | | ????????????????????????## ##?# #? | | ?????????????????????????### ### #? | | ?????????????????????????#### ## #? | | ?????#????????????######## ##### #? | | ?????# ??????????## ## #???# #? | | ?????# ?????????# ###### #? | | ?????# ???????# #? | | ?##### ?????## % ## ####? | | ?# #####! =% ### ## #???? | | ?????# a |%! @ ## ## #???? | | ?????# == ## #???? | | ?????# !%= # # d #???? | | ?????## ####### ## d##########???? | | ??????## ##?????###### u#########????? | | ???????## #????????????## #????? | | ????????# ??????????????# #????? | | ????????## #??????????????# ##### #????? | | ?????????###???????????????## #??????#????? | | ????????????????????????????# #???????????? | | ????????????????????????????# #???????????? | | ????????????????????????????### #???????????? | | ??????????????????????????????# #???????????? | | ??????????????????????????????# % #???????????? | | ??????????????????????????????## #???????????? | | ???????????????????????????????## #???????????? | | ????????????????????????????????# ##???????????? | | ????????????????????????????????# #????????????? | | ????? ??????????????????????????# #????????????? | | ?????=??????????????????????????# #????????????? | | ?????%??????????????????????????# #????????????? | | ?????*??????????????????????????# #????????????? | | ?????$??????????????????????????# #????????????? | | ?????%??????????????????????????# #????????????? | | ?????=??????????????######??????# #????????????? | +----------------------------------------------------+ Best States ------------- Heat Dissipation 25 Energy Generation 10 Energy Capacity 125 Matter Stores 300 Matter Capacity 300 Sight Range 16 Terrain Scan Density 10 Evasion (%) 62 Targeting Accuracy 5 Item Schematics ----------------- None Robot Schematics ------------------ None Fabricated ------------ Nothing Alien Tech Used ----------------- None Achievements -------------- None Challenges ------------ None RPGLIKE | -11 -10 -10 --------- Run | Scr Mat Min Levels Raised 2 | . 1 1 XP Earned 6165 | 3000 2665 500 XP Spent 5350 | 2850 1000 1500 Upgrades 10 | 5 2 3 Propulsion Slot 1 | . 1 . Utility Slot 1 | . 1 . Inventory Capacity 1 | 1 . . Ranged Accuracy 3 | . . 3 KI Damage % 4 | 4 . . Protomatter Created 430 | . 430 . Integrity Restored 740 | . 740 . Core 660 | . 660 . Parts 80 | . 80 . Protomatter Decayed 180 | . 180 . Game ------ Seed HardcellBoreBlaster Manual? 0 Play Time 00:22:03 Cumulative 38.7 hours Start 2019.12.21 @ 20:31:07 End 2019.12.21 @ 21:20:50 Sessions 1 Manual Loads 0 Difficulty Rogue Special Mode Winter2019/RPGLIKE Game No. 42 Rogue 42 Adventurer 0 Explorer 0 Win Type - Total 0 Types 0/0/0/0/0/0/0 Lore% 15 Gallery% 23 Achievement% 25 Wizard Run 0 Options --------- ASCII 0 Keyboard 0 Movement Mouse Keybinds 0 Fullscreen 0 Font 32/SmallcapsGlow Map View 76x50 Tactical HUD 0 Map Filters NONE Filters NONE Steam 1 RUN: c4d1e9c8-1576-40fa-b0bf-7d85c2b07c56